[Event "Titled Tuesday Blitz August 17 2021"]
[White "Gupta, Abhijeet"]
[Black "AlexOstrovskiy"]
[WhiteFideId "5010608"]
[WhiteElo "2549"]
[BlackElo "2832"]
[Result "0-1"]
[Round "05"]
[TimeControl "180+1"]
[Date "2021.08.17"]
[WhiteClock "0:00:16"]
[BlackClock "0:00:28"]

1. d4 {[%clk 0:03:00]}  Nf6 {[%clk 0:02:59]} 2. c4 {[%clk 0:03:00]}  e5 {[%clk 0:02:59]} 3. dxe5 {[%clk 0:03:00]}  Ng4 {[%clk 0:03:00]} 4. Bf4 {[%clk 0:03:00]}  Nc6 {[%clk 0:02:59]} 5. Nf3 {[%clk 0:03:00]}  Bb4+ {[%clk 0:03:00]} 6. Nbd2 {[%clk 0:03:00]}  Qe7 {[%clk 0:03:00]} 7. e3 {[%clk 0:03:00]}  Ngxe5 {[%clk 0:03:00]} 8. Nxe5 {[%clk 0:02:58]}  Nxe5 {[%clk 0:03:01]} 9. Be2 {[%clk 0:02:59]}  d6 {[%clk 0:03:02]} 10. O-O {[%clk 0:02:59]}  a5 {[%clk 0:03:02]} 11. Nb1 {[%clk 0:02:57]}  O-O {[%clk 0:02:55]} 12. a3 {[%clk 0:02:56]}  Bc5 {[%clk 0:02:55]} 13. Nc3 {[%clk 0:02:57]}  f5 {[%clk 0:02:55]} 14. b4 {[%clk 0:02:51]}  Ba7 {[%clk 0:02:51]} 15. c5 {[%clk 0:02:41]}  Kh8 {[%clk 0:02:21]} 16. Nd5 {[%clk 0:02:12]}  Qf7 {[%clk 0:02:13]} 17. Nxc7 {[%clk 0:02:11]}  Qxc7 {[%clk 0:01:45]} 18. cxd6 {[%clk 0:02:10]}  Qf7 {[%clk 0:01:45]} 19. Bxe5 {[%clk 0:02:10]}  Bd7 {[%clk 0:01:46]} 20. Rc1 {[%clk 0:02:06]}  Bb6 {[%clk 0:01:39]} 21. Bd4 {[%clk 0:02:03]}  Bd8 {[%clk 0:01:39]} 22. Bf3 {[%clk 0:02:01]}  axb4 {[%clk 0:01:34]} 23. axb4 {[%clk 0:02:01]}  f4 {[%clk 0:01:21]} 24. e4 {[%clk 0:01:46]}  Ra3 {[%clk 0:01:14]} 25. Ra1 {[%clk 0:01:42]}  Rb3 {[%clk 0:01:13]} 26. Rb1 {[%clk 0:01:36]}  Ra3 {[%clk 0:01:13]} 27. Bb2 {[%clk 0:01:24]}  Ra8 {[%clk 0:01:07]} 28. Ra1 {[%clk 0:01:22]}  Rc8 {[%clk 0:01:06]} 29. Rc1 {[%clk 0:01:22]}  Ra8 {[%clk 0:01:04]} 30. e5 {[%clk 0:01:23]}  Be6 {[%clk 0:01:03]} 31. Bd4 {[%clk 0:01:17]}  Ra3 {[%clk 0:01:00]} 32. Rc3 {[%clk 0:01:11]}  Ra2 {[%clk 0:01:00]} 33. Qc1 {[%clk 0:01:09]}  Qg6 {[%clk 0:00:44]} 34. Re1 {[%clk 0:00:59]}  h6 {[%clk 0:00:40]} 35. Be4 {[%clk 0:00:55]}  Qg4 {[%clk 0:00:37]} 36. Bf3 {[%clk 0:00:35]}  Qh4 {[%clk 0:00:37]} 37. Ra3 {[%clk 0:00:31]}  Rxa3 {[%clk 0:00:37]} 38. Qxa3 {[%clk 0:00:32]}  g5 {[%clk 0:00:34]} 39. h3 {[%clk 0:00:18]}  h5 {[%clk 0:00:35]} 40. b5 {[%clk 0:00:16]}  g4 {[%clk 0:00:33]} 41. hxg4 {[%clk 0:00:16]}  hxg4 {[%clk 0:00:33]} 42. Bxb7 {[%clk 0:00:16]}  g3 {[%clk 0:00:32]} 43. Kf1 {[%clk 0:00:16]}  Bc4+ {[%clk 0:00:28]} 0-1


[Site "https://www.chess.com"]

[Event "Titled Tuesday Blitz August 17 2021"]
[White "Hansen, Sune Berg"]
[Black "Brunner, Nicolas"]
[WhiteFideId "1400266"]
[BlackFideId "620246"]
[WhiteElo "2632"]
[BlackElo "2372"]
[Result "1-0"]
[Round "05"]
[TimeControl "180+1"]
[Date "2021.08.17"]
[WhiteClock "0:00:30"]
[BlackClock "0:00:05"]

1. e4 {[%clk 0:03:00]}  e5 {[%clk 0:02:59]} 2. Nf3 {[%clk 0:03:00]}  Nc6 {[%clk 0:02:59]} 3. Bc4 {[%clk 0:03:01]}  Nf6 {[%clk 0:02:57]} 4. d3 {[%clk 0:03:01]}  Be7 {[%clk 0:02:56]} 5. O-O {[%clk 0:03:00]}  O-O {[%clk 0:02:55]} 6. Re1 {[%clk 0:03:00]}  d6 {[%clk 0:02:55]} 7. a4 {[%clk 0:03:00]}  Na5 {[%clk 0:02:54]} 8. Ba2 {[%clk 0:02:59]}  c5 {[%clk 0:02:54]} 9. Na3 {[%clk 0:02:58]}  Be6 {[%clk 0:02:53]} 10. Bxe6 {[%clk 0:02:56]}  fxe6 {[%clk 0:02:53]} 11. c3 {[%clk 0:02:57]}  Qd7 {[%clk 0:02:49]} 12. Bd2 {[%clk 0:02:49]}  Nc6 {[%clk 0:02:45]} 13. Nc2 {[%clk 0:02:46]}  b6 {[%clk 0:02:37]} 14. b4 {[%clk 0:02:45]}  h6 {[%clk 0:02:25]} 15. h3 {[%clk 0:02:15]}  Rf7 {[%clk 0:02:24]} 16. b5 {[%clk 0:02:10]}  Na5 {[%clk 0:02:20]} 17. Rb1 {[%clk 0:02:10]}  Raf8 {[%clk 0:02:18]} 18. Be3 {[%clk 0:02:04]}  Kh7 {[%clk 0:02:15]} 19. d4 {[%clk 0:01:46]}  exd4 {[%clk 0:02:12]} 20. cxd4 {[%clk 0:01:46]}  Nxe4 {[%clk 0:02:08]} 21. dxc5 {[%clk 0:01:45]}  Qc7 {[%clk 0:01:23]} 22. cxd6 {[%clk 0:01:36]}  Nxd6 {[%clk 0:00:55]} 23. Ncd4 {[%clk 0:01:30]}  Rf6 {[%clk 0:00:47]} 24. Rc1 {[%clk 0:01:22]}  Qb7 {[%clk 0:00:41]} 25. Ne5 {[%clk 0:01:13]}  Nf5 {[%clk 0:00:33]} 26. Qd3 {[%clk 0:00:59]}  Kg8 {[%clk 0:00:20]} 27. Nxf5 {[%clk 0:00:41]}  exf5 {[%clk 0:00:20]} 28. Red1 {[%clk 0:00:35]}  Rd8 {[%clk 0:00:18]} 29. Qc2 {[%clk 0:00:34]}  Rxd1+ {[%clk 0:00:15]} 30. Rxd1 {[%clk 0:00:34]}  Bf8 {[%clk 0:00:08]} 31. Qa2+ {[%clk 0:00:31]}  Kh7 {[%clk 0:00:07]} 32. Nd7 {[%clk 0:00:30]}  Rd6 {[%clk 0:00:05]} 33. Nxf8+ {[%clk 0:00:30]} 1-0


[Site "https://www.chess.com"]

[Event "Titled Tuesday Blitz August 17 2021"]
[White "Dronavalli, Harika"]
[Black "Roman, Rodrigo"]
[WhiteFideId "5015197"]
[BlackFideId "3701220"]
[WhiteElo "2422"]
[BlackElo "2043"]
[Result "1-0"]
[Round "05"]
[TimeControl "180+1"]
[Date "2021.08.17"]
[WhiteClock "0:00:27"]
[BlackClock "0:00:06"]

1. Nf3 {[%clk 0:03:00]}  b5 {[%clk 0:02:57]} 2. e4 {[%clk 0:02:59]}  a6 {[%clk 0:02:56]} 3. d4 {[%clk 0:02:58]}  Bb7 {[%clk 0:02:53]} 4. Bd3 {[%clk 0:02:58]}  Nf6 {[%clk 0:02:52]} 5. Nbd2 {[%clk 0:02:57]}  e6 {[%clk 0:02:52]} 6. O-O {[%clk 0:02:56]}  d5 {[%clk 0:02:49]} 7. Qe2 {[%clk 0:02:51]}  Be7 {[%clk 0:02:49]} 8. c3 {[%clk 0:02:48]}  c5 {[%clk 0:02:48]} 9. e5 {[%clk 0:02:37]}  Nfd7 {[%clk 0:02:47]} 10. Re1 {[%clk 0:02:36]}  Nc6 {[%clk 0:02:46]} 11. Nf1 {[%clk 0:02:36]}  h6 {[%clk 0:02:47]} 12. Ng3 {[%clk 0:02:36]}  g6 {[%clk 0:02:35]} 13. Be3 {[%clk 0:02:34]}  c4 {[%clk 0:02:31]} 14. Bc2 {[%clk 0:02:32]}  Qc7 {[%clk 0:02:31]} 15. h4 {[%clk 0:02:30]}  a5 {[%clk 0:02:27]} 16. h5 {[%clk 0:02:30]}  g5 {[%clk 0:02:27]} 17. Nh2 {[%clk 0:02:30]}  b4 {[%clk 0:02:19]} 18. Ng4 {[%clk 0:02:29]}  a4 {[%clk 0:02:19]} 19. f4 {[%clk 0:02:25]}  a3 {[%clk 0:02:06]} 20. b3 {[%clk 0:02:24]}  bxc3 {[%clk 0:01:57]} 21. fxg5 {[%clk 0:02:13]}  hxg5 {[%clk 0:01:52]} 22. bxc4 {[%clk 0:02:12]}  Ba6 {[%clk 0:01:52]} 23. Bd3 {[%clk 0:02:02]}  Nb4 {[%clk 0:01:52]} 24. Rac1 {[%clk 0:02:01]}  Nxd3 {[%clk 0:01:43]} 25. Qxd3 {[%clk 0:02:01]}  Qxc4 {[%clk 0:01:36]} 26. Qc2 {[%clk 0:01:52]}  Rb8 {[%clk 0:01:17]} 27. h6 {[%clk 0:01:40]}  Rb2 {[%clk 0:01:15]} 28. Qxc3 {[%clk 0:01:40]}  Qxc3 {[%clk 0:01:11]} 29. Rxc3 {[%clk 0:01:41]}  Bb4 {[%clk 0:01:12]} 30. Rec1 {[%clk 0:01:28]}  Bxc3 {[%clk 0:01:11]} 31. Rxc3 {[%clk 0:01:28]}  Rxa2 {[%clk 0:01:09]} 32. Nh5 {[%clk 0:01:27]}  Bc4 {[%clk 0:01:06]} 33. Kh2 {[%clk 0:01:19]}  Nb6 {[%clk 0:00:52]} 34. Bc1 {[%clk 0:01:16]}  Bf1 {[%clk 0:00:40]} 35. Nhf6+ {[%clk 0:00:50]}  Kd8 {[%clk 0:00:38]} 36. Bxa3 {[%clk 0:00:47]}  Rxg2+ {[%clk 0:00:29]} 37. Kh1 {[%clk 0:00:48]}  Nc4 {[%clk 0:00:29]} 38. Bc5 {[%clk 0:00:44]}  Nd2 {[%clk 0:00:14]} 39. Ra3 {[%clk 0:00:40]}  Kc7 {[%clk 0:00:13]} 40. Ra2 {[%clk 0:00:32]}  Bc4 {[%clk 0:00:06]} 41. Ra7+ {[%clk 0:00:27]} 1-0


[Site "https://www.chess.com"]

[Event "Titled Tuesday Blitz August 17 2021"]
[White "Holt, Conrad"]
[Black "Nakamura, Hikaru"]
[WhiteFideId "2034387"]
[BlackFideId "2016192"]
[WhiteElo "2586"]
[BlackElo "2900"]
[Result "0-1"]
[Round "05"]
[TimeControl "180+1"]
[Date "2021.08.17"]
[WhiteClock "0:00:12"]
[BlackClock "0:01:06"]

1. d4 {[%clk 0:03:00]}  g6 {[%clk 0:02:59]} 2. c4 {[%clk 0:03:01]}  Bg7 {[%clk 0:02:59]} 3. Nf3 {[%clk 0:03:01]}  d6 {[%clk 0:02:59]} 4. e4 {[%clk 0:03:01]}  Nc6 {[%clk 0:02:58]} 5. d5 {[%clk 0:02:59]}  Ne5 {[%clk 0:02:57]} 6. Nxe5 {[%clk 0:02:59]}  Bxe5 {[%clk 0:02:58]} 7. Bd3 {[%clk 0:02:59]}  e6 {[%clk 0:02:57]} 8. Nd2 {[%clk 0:02:56]}  Bg7 {[%clk 0:02:55]} 9. O-O {[%clk 0:02:55]}  Nf6 {[%clk 0:02:55]} 10. Nf3 {[%clk 0:02:50]}  O-O {[%clk 0:02:54]} 11. h3 {[%clk 0:02:49]}  Nd7 {[%clk 0:02:52]} 12. Bg5 {[%clk 0:02:49]}  Qe8 {[%clk 0:02:44]} 13. Qd2 {[%clk 0:02:47]}  Nc5 {[%clk 0:02:44]} 14. Bh6 {[%clk 0:02:36]}  a5 {[%clk 0:02:32]} 15. Bxg7 {[%clk 0:02:32]}  Kxg7 {[%clk 0:02:33]} 16. dxe6 {[%clk 0:02:25]}  fxe6 {[%clk 0:02:31]} 17. e5 {[%clk 0:02:23]}  d5 {[%clk 0:02:12]} 18. Bc2 {[%clk 0:02:04]}  Qf7 {[%clk 0:02:06]} 19. Qd4 {[%clk 0:01:53]}  b6 {[%clk 0:02:04]} 20. Rfe1 {[%clk 0:01:36]}  Bb7 {[%clk 0:01:57]} 21. cxd5 {[%clk 0:01:22]}  Bxd5 {[%clk 0:01:57]} 22. Ng5 {[%clk 0:01:12]}  Qf4 {[%clk 0:01:45]} 23. Qxf4 {[%clk 0:01:12]}  Rxf4 {[%clk 0:01:46]} 24. Bd1 {[%clk 0:00:29]}  h6 {[%clk 0:01:18]} 25. Nf3 {[%clk 0:00:27]}  Nd3 {[%clk 0:01:19]} 26. Re2 {[%clk 0:00:20]}  Bxf3 {[%clk 0:01:18]} 27. gxf3 {[%clk 0:00:19]}  Rd8 {[%clk 0:01:19]} 28. Rd2 {[%clk 0:00:18]}  Rfd4 {[%clk 0:01:19]} 29. Re2 {[%clk 0:00:17]}  Nf4 {[%clk 0:01:19]} 30. Re1 {[%clk 0:00:17]}  Nxh3+ {[%clk 0:01:19]} 31. Kf1 {[%clk 0:00:17]}  Rd2 {[%clk 0:01:18]} 32. Be2 {[%clk 0:00:16]}  Rxb2 {[%clk 0:01:18]} 33. Red1 {[%clk 0:00:15]}  Rxd1+ {[%clk 0:01:13]} 34. Rxd1 {[%clk 0:00:16]}  Nf4 {[%clk 0:01:13]} 35. Rd7+ {[%clk 0:00:14]}  Kf8 {[%clk 0:01:13]} 36. Bd1 {[%clk 0:00:15]}  Rxa2 {[%clk 0:01:10]} 37. Rxc7 {[%clk 0:00:15]}  a4 {[%clk 0:01:08]} 38. Rb7 {[%clk 0:00:15]}  a3 {[%clk 0:01:06]} 39. Rxb6 {[%clk 0:00:14]}  Rb2 {[%clk 0:01:07]} 40. Ra6 {[%clk 0:00:14]}  a2 {[%clk 0:01:07]} 41. Ke1 {[%clk 0:00:13]}  h5 {[%clk 0:01:07]} 42. Ra7 {[%clk 0:00:12]}  h4 {[%clk 0:01:06]} 0-1


[Site "https://www.chess.com"]

[Event "Titled Tuesday Blitz August 17 2021"]
[White "Ibarra Jerez, Jose Carlos"]
[Black "Vlassov, Nikolai"]
[WhiteFideId "2226332"]
[BlackFideId "4103360"]
[WhiteElo "2602"]
[BlackElo "2407"]
[Result "1-0"]
[Round "05"]
[TimeControl "180+1"]
[Date "2021.08.17"]
[WhiteClock "0:00:52"]
[BlackClock "0:00:41"]

1. d4 {[%clk 0:03:00]}  Nf6 {[%clk 0:02:58]} 2. Bf4 {[%clk 0:03:00]}  g6 {[%clk 0:02:48]} 3. Nc3 {[%clk 0:02:59]}  d5 {[%clk 0:02:48]} 4. Qd2 {[%clk 0:03:00]}  Bg7 {[%clk 0:02:46]} 5. Bh6 {[%clk 0:02:59]}  Bxh6 {[%clk 0:02:41]} 6. Qxh6 {[%clk 0:02:59]}  c6 {[%clk 0:02:37]} 7. O-O-O {[%clk 0:02:55]}  Ng4 {[%clk 0:02:36]} 8. Qg7 {[%clk 0:02:51]}  Rf8 {[%clk 0:02:32]} 9. Nh3 {[%clk 0:02:49]}  h5 {[%clk 0:02:28]} 10. e4 {[%clk 0:02:31]}  dxe4 {[%clk 0:02:16]} 11. Ng5 {[%clk 0:02:16]}  Nxf2 {[%clk 0:02:00]} 12. Bc4 {[%clk 0:02:03]}  e6 {[%clk 0:01:25]} 13. Ncxe4 {[%clk 0:01:46]}  Nxh1 {[%clk 0:01:15]} 14. Rf1 {[%clk 0:01:24]}  Qe7 {[%clk 0:01:11]} 15. Nxf7 {[%clk 0:01:14]}  Rxf7 {[%clk 0:01:09]} 16. Rxf7 {[%clk 0:01:14]}  Qxf7 {[%clk 0:01:00]} 17. Nd6+ {[%clk 0:01:13]}  Kd7 {[%clk 0:00:56]} 18. Nxf7 {[%clk 0:01:09]}  Kc7 {[%clk 0:00:55]} 19. Ne5+ {[%clk 0:01:08]}  Kb6 {[%clk 0:00:54]} 20. Qf8 {[%clk 0:01:05]}  Na6 {[%clk 0:00:54]} 21. Qd8+ {[%clk 0:01:03]}  Nc7 {[%clk 0:00:52]} 22. Bb3 {[%clk 0:00:59]}  a5 {[%clk 0:00:46]} 23. Nc4+ {[%clk 0:00:58]}  Ka7 {[%clk 0:00:44]} 24. Qxc7 {[%clk 0:00:58]}  a4 {[%clk 0:00:44]} 25. Bxa4 {[%clk 0:00:53]}  Nf2 {[%clk 0:00:41]} 26. Nb6 {[%clk 0:00:52]} 1-0


[Site "https://www.chess.com"]

[Event "Titled Tuesday Blitz August 17 2021"]
[White "Idani, Pouya"]
[Black "Estrada Nieto, Julian"]
[WhiteFideId "12510130"]
[BlackFideId "5101018"]
[WhiteElo "2610"]
[BlackElo "2270"]
[Result "1-0"]
[Round "05"]
[TimeControl "180+1"]
[Date "2021.08.17"]
[WhiteClock "0:00:09"]
[BlackClock "0:00:01"]

1. e4 {[%clk 0:03:00]}  e5 {[%clk 0:02:59]} 2. Nf3 {[%clk 0:02:59]}  Nc6 {[%clk 0:02:59]} 3. Bc4 {[%clk 0:02:58]}  Bc5 {[%clk 0:02:59]} 4. c3 {[%clk 0:02:57]}  d6 {[%clk 0:02:59]} 5. O-O {[%clk 0:02:52]}  Nf6 {[%clk 0:02:58]} 6. d3 {[%clk 0:02:52]}  a6 {[%clk 0:02:57]} 7. Bb3 {[%clk 0:02:52]}  Ba7 {[%clk 0:02:56]} 8. Re1 {[%clk 0:02:50]}  O-O {[%clk 0:02:50]} 9. h3 {[%clk 0:02:48]}  h6 {[%clk 0:02:47]} 10. Nbd2 {[%clk 0:02:47]}  Re8 {[%clk 0:02:47]} 11. Nf1 {[%clk 0:02:47]}  Be6 {[%clk 0:02:48]} 12. N3h2 {[%clk 0:02:44]}  d5 {[%clk 0:02:46]} 13. Qf3 {[%clk 0:02:44]}  d4 {[%clk 0:02:33]} 14. Ng3 {[%clk 0:02:23]}  Bxb3 {[%clk 0:02:19]} 15. axb3 {[%clk 0:02:22]}  Re6 {[%clk 0:02:18]} 16. Nf5 {[%clk 0:02:14]}  Kh7 {[%clk 0:02:05]} 17. Ng4 {[%clk 0:02:03]}  Nxg4 {[%clk 0:02:02]} 18. hxg4 {[%clk 0:02:04]}  Bc5 {[%clk 0:01:56]} 19. b4 {[%clk 0:01:50]}  Bf8 {[%clk 0:01:55]} 20. Qh3 {[%clk 0:01:50]}  Kg8 {[%clk 0:01:37]} 21. Bd2 {[%clk 0:01:48]}  Qd7 {[%clk 0:01:08]} 22. b5 {[%clk 0:01:37]}  Ne7 {[%clk 0:01:05]} 23. c4 {[%clk 0:01:15]}  Rb8 {[%clk 0:00:43]} 24. bxa6 {[%clk 0:01:11]}  bxa6 {[%clk 0:00:39]} 25. Bc1 {[%clk 0:00:45]}  Rb3 {[%clk 0:00:25]} 26. Qf3 {[%clk 0:00:40]}  Nc6 {[%clk 0:00:21]} 27. Qd1 {[%clk 0:00:40]}  Rb8 {[%clk 0:00:17]} 28. Qa4 {[%clk 0:00:40]}  a5 {[%clk 0:00:15]} 29. Rd1 {[%clk 0:00:27]}  Qe8 {[%clk 0:00:14]} 30. Bd2 {[%clk 0:00:21]}  Bb4 {[%clk 0:00:13]} 31. Rac1 {[%clk 0:00:16]}  Bxd2 {[%clk 0:00:11]} 32. Rxd2 {[%clk 0:00:17]}  Rb4 {[%clk 0:00:11]} 33. Qa3 {[%clk 0:00:17]}  Qb8 {[%clk 0:00:11]} 34. Rf1 {[%clk 0:00:16]}  Rb3 {[%clk 0:00:10]} 35. Qa4 {[%clk 0:00:16]}  Qb4 {[%clk 0:00:10]} 36. Qxb4 {[%clk 0:00:15]}  Rxb4 {[%clk 0:00:10]} 37. Ra1 {[%clk 0:00:15]}  Kf8 {[%clk 0:00:10]} 38. Kf1 {[%clk 0:00:15]}  Re8 {[%clk 0:00:09]} 39. Ke2 {[%clk 0:00:16]}  Reb8 {[%clk 0:00:09]} 40. Ra2 {[%clk 0:00:16]}  Rb3 {[%clk 0:00:09]} 41. Ng3 {[%clk 0:00:16]}  g6 {[%clk 0:00:09]} 42. Nf1 {[%clk 0:00:16]}  Ke7 {[%clk 0:00:06]} 43. f3 {[%clk 0:00:16]}  Ra8 {[%clk 0:00:05]} 44. Kd1 {[%clk 0:00:16]}  Nb4 {[%clk 0:00:05]} 45. Ra3 {[%clk 0:00:15]}  Rxa3 {[%clk 0:00:04]} 46. bxa3 {[%clk 0:00:16]}  Nc6 {[%clk 0:00:04]} 47. Rb2 {[%clk 0:00:16]}  Kd6 {[%clk 0:00:04]} 48. Nd2 {[%clk 0:00:16]}  Rb8 {[%clk 0:00:04]} 49. Kc2 {[%clk 0:00:14]}  Rxb2+ {[%clk 0:00:03]} 50. Kxb2 {[%clk 0:00:15]}  a4 {[%clk 0:00:03]} 51. Kc2 {[%clk 0:00:14]}  Kc5 {[%clk 0:00:03]} 52. Nf1 {[%clk 0:00:13]}  Na5 {[%clk 0:00:04]} 53. Ng3 {[%clk 0:00:12]}  Nb3 {[%clk 0:00:03]} 54. Ne2 {[%clk 0:00:13]}  Na1+ {[%clk 0:00:03]} 55. Kb2 {[%clk 0:00:13]}  Nb3 {[%clk 0:00:04]} 56. g3 {[%clk 0:00:13]}  Nd2 {[%clk 0:00:04]} 57. Ng1 {[%clk 0:00:13]}  Nf1 {[%clk 0:00:04]} 58. Kc2 {[%clk 0:00:09]}  Nxg3 {[%clk 0:00:03]} 59. Kd2 {[%clk 0:00:09]}  h5 {[%clk 0:00:04]} 60. Ke1 {[%clk 0:00:08]}  h4 {[%clk 0:00:03]} 61. Kf2 {[%clk 0:00:08]}  f5 {[%clk 0:00:03]} 62. gxf5 {[%clk 0:00:08]}  gxf5 {[%clk 0:00:04]} 63. Nh3 {[%clk 0:00:09]}  fxe4 {[%clk 0:00:03]} 64. fxe4 {[%clk 0:00:10]}  Kd6 {[%clk 0:00:03]} 65. Ng5 {[%clk 0:00:08]}  Ke7 {[%clk 0:00:02]} 66. Nf3 {[%clk 0:00:08]}  Nh5 {[%clk 0:00:02]} 67. Nxe5 {[%clk 0:00:08]}  Nf4 {[%clk 0:00:03]} 68. Kf3 {[%clk 0:00:08]}  Nh3 {[%clk 0:00:02]} 69. Kg4 {[%clk 0:00:08]}  Nf2+ {[%clk 0:00:02]} 70. Kxh4 {[%clk 0:00:09]}  Nd1 {[%clk 0:00:02]} 71. Nf3 {[%clk 0:00:08]}  Nb2 {[%clk 0:00:03]} 72. Nxd4 {[%clk 0:00:08]}  c5 {[%clk 0:00:03]} 73. Kh3 {[%clk 0:00:08]}  Nxd3 {[%clk 0:00:03]} 74. Nb5 {[%clk 0:00:08]}  Ne5 {[%clk 0:00:02]} 75. Nc3 {[%clk 0:00:08]}  Nf3 {[%clk 0:00:01]} 76. Nxa4 {[%clk 0:00:08]}  Nd2 {[%clk 0:00:01]} 77. Nxc5 {[%clk 0:00:08]}  Nxc4 {[%clk 0:00:01]} 78. a4 {[%clk 0:00:09]}  Kd6 {[%clk 0:00:01]} 79. Nb7+ {[%clk 0:00:09]} 1-0


[Site "https://www.chess.com"]

[Event "Titled Tuesday Blitz August 17 2021"]
[White "Indjic, Aleksandar"]
[Black "Weetik, Vjacheslav"]
[WhiteFideId "911925"]
[BlackFideId "4153472"]
[WhiteElo "2643"]
[BlackElo "2469"]
[Result "1-0"]
[Round "05"]
[TimeControl "180+1"]
[Date "2021.08.17"]
[WhiteClock "0:00:21"]
[BlackClock "0:00:01"]

1. d4 {[%clk 0:03:00]}  d5 {[%clk 0:02:56]} 2. Nf3 {[%clk 0:02:58]}  e6 {[%clk 0:02:56]} 3. c4 {[%clk 0:02:58]}  c6 {[%clk 0:02:55]} 4. Nc3 {[%clk 0:02:56]}  dxc4 {[%clk 0:02:55]} 5. a4 {[%clk 0:02:54]}  Bb4 {[%clk 0:02:55]} 6. g3 {[%clk 0:02:55]}  c5 {[%clk 0:02:49]} 7. Bg2 {[%clk 0:02:49]}  Nc6 {[%clk 0:02:47]} 8. Be3 {[%clk 0:02:49]}  Nge7 {[%clk 0:02:32]} 9. dxc5 {[%clk 0:02:17]}  Qa5 {[%clk 0:02:09]} 10. Nd2 {[%clk 0:02:07]}  Ne5 {[%clk 0:01:34]} 11. O-O {[%clk 0:01:49]}  O-O {[%clk 0:01:31]} 12. Nde4 {[%clk 0:01:30]}  Bd7 {[%clk 0:01:02]} 13. Qc2 {[%clk 0:01:27]}  Nf5 {[%clk 0:00:51]} 14. Bf4 {[%clk 0:01:18]}  Ng6 {[%clk 0:00:48]} 15. Bd6 {[%clk 0:01:03]}  Rfc8 {[%clk 0:00:45]} 16. Rfd1 {[%clk 0:01:01]}  Bc6 {[%clk 0:00:43]} 17. h4 {[%clk 0:01:01]}  h6 {[%clk 0:00:35]} 18. h5 {[%clk 0:00:59]}  Nge7 {[%clk 0:00:35]} 19. Nb5 {[%clk 0:00:54]}  Bd5 {[%clk 0:00:22]} 20. Bxe7 {[%clk 0:00:50]}  Nxe7 {[%clk 0:00:22]} 21. Nbd6 {[%clk 0:00:51]}  Rxc5 {[%clk 0:00:18]} 22. Nxc5 {[%clk 0:00:47]}  Qxc5 {[%clk 0:00:19]} 23. Nb5 {[%clk 0:00:41]}  a6 {[%clk 0:00:17]} 24. Nc3 {[%clk 0:00:41]}  Bxc3 {[%clk 0:00:16]} 25. bxc3 {[%clk 0:00:41]}  Bxg2 {[%clk 0:00:12]} 26. Kxg2 {[%clk 0:00:42]}  Qxh5 {[%clk 0:00:12]} 27. Rd7 {[%clk 0:00:42]}  Nd5 {[%clk 0:00:12]} 28. Rh1 {[%clk 0:00:36]}  Qg4 {[%clk 0:00:10]} 29. Rh4 {[%clk 0:00:34]}  Qg5 {[%clk 0:00:05]} 30. Rxb7 {[%clk 0:00:30]}  Rd8 {[%clk 0:00:03]} 31. Rxc4 {[%clk 0:00:26]}  Ne3+ {[%clk 0:00:02]} 32. fxe3 {[%clk 0:00:25]}  Qd5+ {[%clk 0:00:02]} 33. Qe4 {[%clk 0:00:25]}  Qd2 {[%clk 0:00:02]} 34. Qf3 {[%clk 0:00:22]}  Qc2 {[%clk 0:00:01]} 35. Qxf7+ {[%clk 0:00:21]} 1-0


[Site "https://www.chess.com"]

[Event "Titled Tuesday Blitz August 17 2021"]
[White "Kavyev, Ruslan"]
[Black "Batsuren, Dambasuren"]
[WhiteFideId "34110981"]
[BlackFideId "4902920"]
[WhiteElo "2172"]
[BlackElo "2371"]
[Result "1-0"]
[Round "05"]
[TimeControl "180+1"]
[Date "2021.08.17"]
[WhiteClock "0:00:03"]
[BlackClock "0:00:02"]

1. e4 {[%clk 0:03:00]}  c6 {[%clk 0:03:00]} 2. d4 {[%clk 0:03:01]}  d5 {[%clk 0:03:01]} 3. Nd2 {[%clk 0:03:02]}  dxe4 {[%clk 0:03:01]} 4. Nxe4 {[%clk 0:03:02]}  Nf6 {[%clk 0:03:02]} 5. Nxf6+ {[%clk 0:03:03]}  exf6 {[%clk 0:03:03]} 6. c3 {[%clk 0:03:03]}  Bd6 {[%clk 0:03:04]} 7. Bd3 {[%clk 0:03:04]}  O-O {[%clk 0:03:04]} 8. Qc2 {[%clk 0:03:04]}  Re8+ {[%clk 0:03:05]} 9. Ne2 {[%clk 0:03:05]}  h5 {[%clk 0:03:05]} 10. O-O {[%clk 0:03:06]}  Nd7 {[%clk 0:03:05]} 11. Be3 {[%clk 0:03:04]}  Nf8 {[%clk 0:02:55]} 12. c4 {[%clk 0:03:04]}  h4 {[%clk 0:02:54]} 13. h3 {[%clk 0:03:04]}  Bc7 {[%clk 0:02:52]} 14. Rfe1 {[%clk 0:03:01]}  Be6 {[%clk 0:02:43]} 15. Rad1 {[%clk 0:03:00]}  Qd7 {[%clk 0:02:35]} 16. Nf4 {[%clk 0:02:51]}  Rad8 {[%clk 0:02:30]} 17. d5 {[%clk 0:02:45]}  Bxf4 {[%clk 0:02:22]} 18. Bxf4 {[%clk 0:02:40]}  cxd5 {[%clk 0:02:22]} 19. cxd5 {[%clk 0:02:39]}  Bxd5 {[%clk 0:02:21]} 20. Rxe8 {[%clk 0:02:25]}  Qxe8 {[%clk 0:02:18]} 21. Bc7 {[%clk 0:02:25]}  Rc8 {[%clk 0:02:15]} 22. Qc5 {[%clk 0:01:47]}  Bxg2 {[%clk 0:02:00]} 23. Kxg2 {[%clk 0:01:15]}  Ne6 {[%clk 0:02:00]} 24. Qf5 {[%clk 0:01:15]}  Rxc7 {[%clk 0:01:33]} 25. Qh7+ {[%clk 0:01:14]}  Kf8 {[%clk 0:01:34]} 26. Qh8+ {[%clk 0:01:10]}  Ke7 {[%clk 0:01:34]} 27. Qxh4 {[%clk 0:01:11]}  Qc6+ {[%clk 0:01:31]} 28. Kg1 {[%clk 0:00:58]}  Qd6 {[%clk 0:01:24]} 29. Be2 {[%clk 0:00:45]}  Qf4 {[%clk 0:01:23]} 30. Qh8 {[%clk 0:00:41]}  Rc1 {[%clk 0:01:17]} 31. Qa8 {[%clk 0:00:35]}  Qg5+ {[%clk 0:00:49]} 32. Kf1 {[%clk 0:00:30]}  Rxd1+ {[%clk 0:00:50]} 33. Bxd1 {[%clk 0:00:30]}  Qd5 {[%clk 0:00:51]} 34. Bb3 {[%clk 0:00:24]}  Qb5+ {[%clk 0:00:21]} 35. Kg1 {[%clk 0:00:22]}  Nf4 {[%clk 0:00:21]} 36. Qxa7 {[%clk 0:00:17]}  Qg5+ {[%clk 0:00:10]} 37. Kf1 {[%clk 0:00:17]}  Qb5+ {[%clk 0:00:11]} 38. Kg1 {[%clk 0:00:16]}  Qg5+ {[%clk 0:00:04]} 39. Kf1 {[%clk 0:00:16]}  Qg2+ {[%clk 0:00:05]} 40. Ke1 {[%clk 0:00:16]}  Qh1+ {[%clk 0:00:06]} 41. Kd2 {[%clk 0:00:16]}  Qc6 {[%clk 0:00:03]} 42. Qe3+ {[%clk 0:00:14]}  Ne6 {[%clk 0:00:03]} 43. Bxe6 {[%clk 0:00:06]}  fxe6 {[%clk 0:00:04]} 44. Qg3 {[%clk 0:00:05]}  Qd5+ {[%clk 0:00:04]} 45. Kc3 {[%clk 0:00:04]}  g5 {[%clk 0:00:04]} 46. a3 {[%clk 0:00:04]}  e5 {[%clk 0:00:04]} 47. Kc2 {[%clk 0:00:02]}  Kd6 {[%clk 0:00:03]} 48. Kb1 {[%clk 0:00:03]}  Qd1+ {[%clk 0:00:03]} 49. Ka2 {[%clk 0:00:03]}  Qd5+ {[%clk 0:00:02]} 50. Ka1 {[%clk 0:00:04]}  Ke6 {[%clk 0:00:02]} 51. Qc3 {[%clk 0:00:03]}  Kf7 {[%clk 0:00:02]} 52. Qc7+ {[%clk 0:00:03]}  Kg6 {[%clk 0:00:03]} 53. Qc8 {[%clk 0:00:03]}  Qh1+ {[%clk 0:00:03]} 54. Ka2 {[%clk 0:00:03]}  Qd5+ {[%clk 0:00:04]} 55. Ka1 {[%clk 0:00:04]}  e4 {[%clk 0:00:04]} 56. Qe8+ {[%clk 0:00:03]}  Kf5 {[%clk 0:00:05]} 57. Qh5 {[%clk 0:00:03]}  Ke5 {[%clk 0:00:04]} 58. Qe8+ {[%clk 0:00:02]}  Kf4 {[%clk 0:00:04]} 59. Qf8 {[%clk 0:00:02]}  Qd1+ {[%clk 0:00:01]} 60. Ka2 {[%clk 0:00:02]}  Qd5+ {[%clk 0:00:02]} 61. Ka1 {[%clk 0:00:03]}  f5 {[%clk 0:00:02]} 62. Qb8+ {[%clk 0:00:03]} 1-0


[Site "https://www.chess.com"]